fUST/lending_fUST_20241106
["ID","MTS","AMOUNT","RATE_DAILY","PERIOD"]
[341453054,1730898647775,-500.0,0.00028219,2]
[341453055,1730898647784,-500.0,0.00028219,2]
[341453056,1730898647794,-5743.15,0.00028219,2]
[341453057,1730898647803,-1016.99,0.00028219,2]
[341453058,1730898647813,-500.0,0.00028219,2]
[341453059,1730898647822,-500.0,0.00028219,2]
[341453060,1730898647831,-500.0,0.00028219,2]
[341453061,1730898647843,-500.0,0.00028219,2]
[341453062,1730898647853,-150.01,0.00028492,2]
[341453063,1730898647862,-12178.19579712,0.00028492,2]
[341453064,1730898647873,-500.0,0.00028493,2]
[341453065,1730898647883,-500.0,0.00028493,2]
[341453066,1730898647893,-796.51,0.00028493,2]
[341453067,1730898647903,-500.0,0.00028493,2]
[341453068,1730898647913,-879.0,0.00028493,2]
[341453069,1730898647923,-500.0,0.00028493,2]
[341453070,1730898647934,-500.0,0.00028493,2]
[341453071,1730898647944,-633.11,0.00028493,2]
[341453072,1730898647954,-500.0,0.00028493,2]
[341453073,1730898647965,-462.98165539,0.00028493,2]
[341453074,1730898648304,-500.0,0.00027397,2]
[341453075,1730898648314,-502.95140285,0.00027397,2]
[341453076,1730898648323,-509.35395044,0.00027671,2]
[341453077,1730898648332,-216.81834461,0.00028493,2]
[341453078,1730898648342,-6904.55,0.00028493,2]
[341453079,1730898648351,-1750.39,0.00028493,2]
[341453080,1730898648362,-612.62,0.00028493,2]
[341453081,1730898648373,-1051.04,0.00028493,2]
[341453082,1730898648382,-500.0,0.00028493,2]
[341453083,1730898648391,-500.0,0.00028493,2]
[341453084,1730898648401,-500.0,0.00028493,2]
[341453085,1730898648411,-500.0,0.00028493,2]
[341453086,1730898648420,-5743.15,0.00028493,2]
[341453087,1730898648429,-1016.99,0.00028493,2]
[341453088,1730898648438,-500.0,0.00028493,2]
[341453089,1730898648447,-500.0,0.00028493,2]
[341453090,1730898648456,-500.0,0.00028493,2]
[341453091,1730898648469,-500.0,0.00028493,2]
[341453092,1730898648478,-150.0,0.0002855,2]
[341453093,1730898648487,-529.0,0.0002855,2]
[341453094,1730898648496,-1137.0,0.0002855,2]
[341453095,1730898648505,-2393.0,0.0002855,2]
[341453096,1730898648514,-707.52114608,0.00028599,2]
[341453097,1730898648523,-1065.1867958,0.00028742,5]
[341453098,1730898648534,-1000.0,0.00028742,5]
[341453099,1730898648543,-1000.0,0.00028742,5]
[341453100,1730898648552,-1000.0,0.00028742,5]
[341453101,1730898648561,-1000.0,0.00028742,2]
[341453102,1730898648570,-1000.0,0.00028742,5]
[341453103,1730898648580,-542.58,0.00028757,3]
[341453104,1730898648590,-500.0,0.00028767,2]
[341453105,1730898648599,-500.0,0.00028767,2]
[341453106,1730898648610,-796.51,0.00028767,2]
[341453107,1730898648619,-500.0,0.00028767,2]
[341453108,1730898648628,-500.0,0.00028767,2]
[341453109,1730898648638,-500.0,0.00028767,2]
[341453110,1730898648647,-633.11,0.00028767,2]
[341453111,1730898648656,-679.8,0.00028767,2]
[341453112,1730898648666,-6904.55,0.00028767,2]
[341453113,1730898648675,-1750.39,0.00028767,2]
[341453114,1730898648684,-612.62,0.00028767,2]
[341453115,1730898648694,-1051.04,0.00028767,2]
[341453116,1730898648703,-500.0,0.00028767,2]
[341453117,1730898648716,-500.0,0.00028767,2]
[341453118,1730898648725,-500.0,0.00028767,2]
[341453119,1730898648735,-500.0,0.00028767,2]
[341453120,1730898648744,-5743.15,0.00028767,2]
[341453121,1730898648753,-1016.99,0.00028767,2]
[341453122,1730898648766,-500.0,0.00028767,2]
[341453123,1730898648775,-500.0,0.00028767,2]
[341453124,1730898648786,-500.0,0.00028767,2]
[341453125,1730898648797,-500.0,0.00028767,2]
[341453126,1730898648806,-999.99999989,0.00028852,2]
[341453127,1730898648818,-857.56224804,0.00028941,2]
[341453128,1730898648827,-500.0,0.00029041,2]
[341453129,1730898648839,-444.21753726,0.00029041,2]
[341453130,1730898648849,-796.51,0.00029041,2]
[341453131,1730898648858,-500.0,0.00029041,2]
[341453132,1730898648868,-500.0,0.00029041,2]
[341453133,1730898648878,-500.0,0.00029041,2]
[341453134,1730898648889,-633.11,0.00029041,2]
[341453135,1730898648899,-679.8,0.00029041,2]
[341453136,1730898648909,-6904.55,0.00029041,2]
[341453137,1730898648919,-1750.39,0.00029041,2]
[341453138,1730898648929,-612.62,0.00029041,2]
[341453139,1730898648940,-1051.04,0.00029041,2]
[341453140,1730898648951,-500.0,0.00029041,2]
[341453141,1730898648963,-500.0,0.00029041,2]
[341453142,1730898649066,-500.0,0.00029041,2]
[341453143,1730898649078,-500.0,0.00029041,2]
[341453144,1730898649089,-5743.15,0.00029041,2]
[341453145,1730898649099,-1016.99,0.00029041,2]
[341453146,1730898649110,-500.0,0.00029041,2]
[341453147,1730898649119,-500.0,0.00029041,2]
[341453148,1730898649129,-500.0,0.00029041,2]
[341453149,1730898649139,-500.0,0.00029041,2]
[341453150,1730898649149,-485.26526292,0.00029044,2]
[341453151,1730898649158,-1349.769,0.00029235,2]
[341453152,1730898649168,-707.52114608,0.00029249,2]
[341453153,1730898649177,-500.0,0.00029315,2]
[341453154,1730898649186,-796.51,0.00029315,2]
[341453155,1730898649196,-500.0,0.00029315,2]
[341453156,1730898649205,-500.0,0.00029315,2]
[341453157,1730898649221,-500.0,0.00029315,2]
[341453158,1730898649231,-633.11,0.00029315,2]
[341453159,1730898649240,-679.8,0.00029315,2]
[341453160,1730898649250,-6904.55,0.00029315,2]
[341453161,1730898649259,-1750.39,0.00029315,2]
[341453162,1730898649268,-612.62,0.00029315,2]
[341453163,1730898649277,-1051.04,0.00029315,2]
[341453164,1730898649287,-500.0,0.00029315,2]
[341453165,1730898649296,-500.0,0.00029315,2]
[341453166,1730898649305,-500.0,0.00029315,2]
[341453167,1730898649315,-500.0,0.00029315,2]
[341453168,1730898649325,-5743.15,0.00029315,2]
[341453169,1730898649334,-1016.99,0.00029315,2]
[341453170,1730898649343,-500.0,0.00029315,2]
[341453171,1730898649353,-500.0,0.00029315,2]
[341453172,1730898649362,-500.0,0.00029315,2]
[341453173,1730898649372,-303.99509602,0.00029315,2]
[341453174,1730898649381,-903.09193052,0.00029342,5]
[341453175,1730898649391,-1531.032312,0.00029506,2]
[341453176,1730898649401,-500.0,0.00029589,2]
[341453177,1730898649410,-796.51,0.00029589,2]
[341453178,1730898649420,-500.0,0.00029589,2]
[341453179,1730898649429,-500.0,0.00029589,2]
[341453180,1730898649438,-500.0,0.00029589,2]
[341453181,1730898649448,-633.11,0.00029589,2]
[341453182,1730898649457,-679.8,0.00029589,2]
[341453183,1730898649468,-6904.55,0.00029589,2]
[341453184,1730898649477,-1750.39,0.00029589,2]
[341453185,1730898649487,-612.62,0.00029589,2]
[341453186,1730898649496,-1051.04,0.00029589,2]
[341453187,1730898649505,-500.0,0.00029589,2]
[341453188,1730898649515,-500.0,0.00029589,2]
[341453189,1730898649524,-500.0,0.00029589,2]
[341453190,1730898649533,-500.0,0.00029589,2]
[341453191,1730898649543,-5743.15,0.00029589,2]
[341453192,1730898649552,-1016.99,0.00029589,2]
[341453193,1730898649561,-500.0,0.00029589,2]
[341453194,1730898649571,-500.0,0.00029589,2]
[341453195,1730898649581,-500.0,0.00029589,2]
[341453196,1730898649590,-412.5318166,0.00029808,30]
[341453197,1730898649600,-500.0,0.00029863,2]
[341453198,1730898649609,-796.51,0.00029863,2]
[341453199,1730898649618,-500.0,0.00029863,2]
[341453200,1730898649627,-500.0,0.00029863,2]
[341453201,1730898649636,-500.0,0.00029863,2]
[341453202,1730898649646,-633.11,0.00029863,2]
[341453203,1730898649655,-679.8,0.00029863,2]
[341453204,1730898649664,-6904.55,0.00029863,2]
[341453205,1730898649674,-1750.39,0.00029863,2]
[341453206,1730898649683,-612.62,0.00029863,2]
[341453207,1730898649692,-1051.04,0.00029863,2]
[341453208,1730898649702,-500.0,0.00029863,2]
[341453209,1730898649713,-500.0,0.00029863,2]
[341453210,1730898649725,-500.0,0.00029863,2]
[341453211,1730898649735,-500.0,0.00029863,2]
[341453212,1730898649744,-832.60132825,0.00029863,2]
[341453213,1730898649759,-869.94591213,0.00029863,2]
[341453214,1730898649774,-330.29329238,0.00029863,2]
[341453215,1730898649786,-2495.76253536,0.00029863,2]
[341453216,1730898649957,-500.0,0.00024648,2]
[341453217,1730898649969,-500.0,0.00024648,2]
[341453218,1730898649978,-500.0,0.00024648,2]
[341453219,1730898649988,-500.0,0.00024648,2]
[341453220,1730898649997,-500.0,0.00024648,2]
[341453221,1730898650007,-365.71349845,0.00024648,2]
[341453222,1730898650016,-500.0,0.00024648,2]
[341453223,1730898650028,-500.0,0.00024648,2]
[341453224,1730898650038,-397.31943214,0.00024648,2]
[341453225,1730898650048,-500.0,0.00024648,2]
[341453226,1730898650058,-500.0,0.00024648,2]
[341453227,1730898650068,-500.0,0.00024648,2]
[341453228,1730898650078,-500.0,0.00024648,2]
[341453229,1730898650087,-500.0,0.00024648,2]
[341453230,1730898650096,-500.0,0.00024648,2]
[341453231,1730898650107,-500.0,0.00024648,2]
[341453232,1730898650118,-500.0,0.00024648,2]
[341453233,1730898650128,-500.0,0.00024648,2]
[341453234,1730898650138,-281.63,0.00027661,10]
[341453235,1730898650148,-1214.54693188,0.00029863,2]
[341453236,1730898650158,-1016.99,0.00029863,2]
[341453237,1730898650169,-500.0,0.00029863,2]
[341453238,1730898650179,-500.0,0.00029863,2]
[341453239,1730898650189,-500.0,0.00029863,2]
[341453240,1730898650200,-707.52114608,0.000299,2]
[341453241,1730898650212,-502.44745952,0.00029973,5]
[341453242,1730898650221,-317.8253851,0.00029973,5]
[341453243,1730898650231,-500.0,0.00029973,5]
[341453244,1730898650240,-340.61145551,0.00029973,5]
[341453245,1730898650250,-500.0,0.00029973,5]
[341453246,1730898650260,-632.21763464,0.00029973,3]
[341453247,1730898650270,-500.0,0.00029973,5]
[341453248,1730898650280,-500.0,0.00029973,5]
[341453249,1730898650291,-29171.19484393,0.0003,2]
[341453262,1730898735419,1169.27083333,0.0002082,2]
[341453265,1730899347847,1169.27083333,0.0002082,2]
[341453290,1730899703769,352.0,0.0002,2]
[341453400,1730899832790,-359.9,0.00023776,2]
[341453405,1730899832833,-809.37083333,0.00023776,2]
[341453406,1730899832842,-300.0,0.00025406,2]
[341453408,1730899832853,-24900.0,0.00025407,2]
[341453410,1730899832864,-157.17,0.00025737,2]
[341453412,1730899832875,-526.0,0.00027,2]
[341453414,1730899832889,-163.0,0.00027,2]
[341453416,1730899832899,-1502.71224433,0.00027192,2]
[341453417,1730899832910,-500.0,0.00027297,2]
[341453419,1730899832920,-663.96202388,0.00027297,2]
[341453421,1730899832931,-500.0,0.00027373,2]
[341453423,1730899832941,-500.0,0.00027373,2]
[341453425,1730899832951,-500.0,0.00027373,2]
[341453427,1730899832961,-500.0,0.00027373,2]
[341453429,1730899832971,-500.0,0.00027373,2]
[341453430,1730899832982,-318.3,0.00027387,3]
[341453431,1730899832992,-234.69,0.00027387,10]
[341453433,1730899833001,-195.57,0.00027387,10]
[341453435,1730899833011,-162.98,0.00027387,10]
[341453436,1730899833021,-341.28817238,0.00027396,2]
[341453437,1730899833030,-500.0,0.00027396,2]
[341453438,1730899833039,-489.21311905,0.00027396,2]
[341453439,1730899833049,-424.04723603,0.00027397,2]
[341453440,1730899833059,-364.50117229,0.00027397,2]
[341453441,1730899833068,-166.05576297,0.00027397,2]
[341453442,1730899833078,-106.45459281,0.00027397,2]
[341453497,1730899838977,-1169.27083333,0.00022791,2]
[341453498,1730899838989,-500.0,0.0002729,2]
[341453499,1730899839000,-500.0,0.0002729,2]
[341453500,1730899839010,-500.0,0.0002729,2]
[341453501,1730899839021,-500.0,0.0002729,2]
[341453502,1730899839033,-500.0,0.0002729,2]
[341453503,1730899839044,-500.0,0.0002729,2]
[341453504,1730899839053,-500.0,0.0002729,2]
[341453505,1730899839063,-500.0,0.0002729,2]
[341453506,1730899839073,-391.7643151,0.0002729,2]
[341453507,1730899839083,-250.77926613,0.0002729,2]
[341453508,1730899839096,-289.6222613,0.0002729,2]
[341453509,1730899839107,-159.84218302,0.0002729,2]
[341453510,1730899839119,-393.54540719,0.00027397,2]
[341453511,1730899839129,-500.0,0.00027397,2]
[341453512,1730899839141,-446.003483,0.00027397,2]
[341453513,1730899839152,-500.0,0.00027397,2]
[341453514,1730899839163,-500.0,0.00027397,2]
[341453515,1730899839176,-500.0,0.00027397,2]
[341453516,1730899839187,-500.0,0.00027397,2]
[341453517,1730899839196,-500.0,0.00027397,2]
[341453518,1730899839206,-500.0,0.00027397,2]
[341453519,1730899839216,-200.0,0.00027397,2]
[341453520,1730899839226,-500.0,0.00027397,2]
[341453521,1730899839236,-500.0,0.00027397,2]
[341453522,1730899839247,-500.0,0.00027397,2]
[341453523,1730899839257,-500.0,0.00027397,2]
[341453524,1730899839267,-506.9320964,0.00027397,2]
[341453525,1730899839279,-343.24506864,0.00027397,2]
[341453526,1730899839290,-500.0,0.00027397,2]
[341453527,1730899839300,-564.02354214,0.00027397,2]
[341453528,1730899839309,-500.0,0.00027397,2]
[341453529,1730899839318,-500.0,0.00027397,2]
[341453530,1730899839328,-531.37375211,0.00027397,2]
[341453531,1730899839337,-500.0,0.00027397,2]
[341453532,1730899839346,-500.0,0.00027397,2]
[341453533,1730899839355,-364.05370021,0.00027397,2]
[341453534,1730899839366,-500.0,0.00027397,2]
[341453535,1730899839376,-500.0,0.00027397,2]
[341453536,1730899839386,-500.0,0.00027397,2]
[341453537,1730899839395,-585.14912009,0.00027397,2]
[341453538,1730899839404,-500.0,0.00027397,2]
[341453539,1730899839414,-500.0,0.00027397,2]
[341453540,1730899839423,-500.0,0.00027397,2]
[341453541,1730899839432,-500.0,0.00027397,2]
[341453542,1730899839442,-593.43821414,0.00027397,2]
[341453543,1730899839452,-500.0,0.00027397,2]
[341453544,1730899839461,-500.0,0.00027397,2]
[341453545,1730899839471,-514.80756876,0.00027397,2]
[341453546,1730899839480,-545.7655946,0.00027397,2]
[341453547,1730899839490,-172.31773014,0.00027397,2]
[341453548,1730899839500,-500.0,0.00027397,2]
[341453549,1730899839509,-500.0,0.00027397,2]
[341453550,1730899839519,-500.0,0.00027397,2]
[341453551,1730899839528,-500.0,0.00027397,2]
[341453552,1730899839538,-500.0,0.00027397,2]
[341453553,1730899839548,-500.0,0.00027397,2]
[341453554,1730899839558,-500.0,0.00027397,2]
[341453555,1730899839568,-500.0,0.00027397,2]
[341453556,1730899839578,-500.0,0.00027397,2]
[341453557,1730899839587,-253.923298,0.00027397,2]
[341453558,1730899839596,-500.0,0.00027397,2]
[341453559,1730899839606,-509.840662,0.00027397,2]
[341453560,1730899839616,-515.30815637,0.00027397,2]
[341453561,1730899839625,-603.35458812,0.00027397,2]
[341453562,1730899839635,-500.0,0.00027397,2]
[341453563,1730899839644,-505.03429272,0.00027397,2]
[341453564,1730899839654,-510.84366826,0.00027397,2]
[341453565,1730899839663,-579.62626999,0.00027397,2]
[341453566,1730899839673,-500.0,0.00027397,2]
[341453567,1730899839682,-500.0,0.00027397,2]
[341453568,1730899839693,-500.0,0.00027397,2]
[341453569,1730899839703,-520.70841967,0.00027397,2]
[341453570,1730899839713,-500.0,0.00027397,2]
[341453571,1730899839723,-500.0,0.00027397,2]
[341453572,1730899839732,-500.0,0.00027397,2]
[341453573,1730899839743,-500.0,0.00027397,2]
[341453574,1730899839752,-500.0,0.00027397,2]
[341453575,1730899839762,-536.22913478,0.00027397,2]
[341453576,1730899839773,-500.0,0.00027397,2]
[341453577,1730899839783,-500.0,0.00027397,2]
[341453578,1730899839792,-500.0,0.00027397,2]
[341453579,1730899839802,-505.03513103,0.00027397,2]
[341453580,1730899839813,-500.0,0.00027397,2]
[341453581,1730899839822,-618.3,0.00027397,2]
[341453582,1730899839832,-500.0,0.00027397,2]
[341453583,1730899839843,-497.22879591,0.00027397,2]
[341453584,1730899839852,-500.0,0.00027397,2]
[341453585,1730899839862,-500.0,0.00027397,2]
[341453586,1730899839874,-370.30943339,0.00027397,2]
[341453587,1730899839883,-500.0,0.00027397,2]
[341453588,1730899839892,-500.0,0.00027397,2]
[341453589,1730899839902,-500.0,0.00027397,2]
[341453590,1730899839912,-500.0,0.00027397,2]
[341453591,1730899839921,-520.81378005,0.00027397,2]
[341453592,1730899839931,-500.0,0.00027397,2]
[341453593,1730899839940,-511.8290284,0.00027397,2]
[341453594,1730899839950,-519.24888867,0.00027397,2]
[341453595,1730899839960,-500.0,0.00027397,2]
[341453596,1730899839971,-500.0,0.00027397,2]
[341453597,1730899839980,-500.0,0.00027397,2]
[341453598,1730899839992,-629.63,0.00027397,2]
[341453599,1730899840002,-500.0,0.00027397,2]
[341453600,1730899840011,-500.0,0.00027397,2]
[341453601,1730899840021,-516.50382394,0.00027397,2]
[341453602,1730899840031,-500.0,0.00027397,2]
[341453603,1730899840041,-219.9828685,0.00027397,2]
[341453641,1730899843936,-500.0,0.00027373,2]
[341453642,1730899843946,-280.0171315,0.00027397,2]
[341453643,1730899843956,-500.0,0.00027397,2]
[341453644,1730899843966,-500.0,0.00027397,2]
[341453645,1730899843976,-500.0,0.00027397,2]
[341453646,1730899843985,-596.56234697,0.00027397,2]
[341453647,1730899843995,-500.0,0.00027397,2]
[341453648,1730899844004,-508.84657638,0.00027397,2]
[341453649,1730899844014,-500.0,0.00027397,2]
[341453650,1730899844023,-500.0,0.00027397,2]
[341453651,1730899844033,-501.42,0.00027397,2]
[341453652,1730899844043,-500.0,0.00027397,2]
[341453653,1730899844052,-500.0,0.00027397,2]
[341453655,1730899844062,-500.0,0.00027397,2]
[341453657,1730899844071,-229.53920148,0.00027397,2]
[341453659,1730899844081,-500.0,0.00027397,2]
[341453661,1730899844092,-500.0,0.00027397,2]
[341453663,1730899844101,-500.0,0.00027397,2]
[341453664,1730899844111,-500.0,0.00027397,2]
[341453667,1730899844122,-513.76526051,0.00027397,2]
[341453668,1730899844131,-311.91883422,0.00027397,2]
[341453670,1730899844141,-500.0,0.00027397,2]
[341453673,1730899844151,-1239.86,0.00027397,2]
[341453674,1730899844160,-500.0,0.00027397,2]
[341453676,1730899844171,-424.40156219,0.00027397,2]
[341453692,1730899844317,-75.59843781,0.00027397,2]
[341453694,1730899844327,-500.0,0.00027397,2]
[341453696,1730899844337,-440.97132462,0.00027397,2]
[341453698,1730899844347,-500.0,0.00027397,2]
[341453700,1730899844357,-623.8341087,0.00027397,2]
[341453702,1730899844367,-527.61764638,0.00027397,2]
[341453704,1730899844380,-500.82,0.00027397,2]
[341453706,1730899844390,-500.0,0.00027397,2]
[341453707,1730899844401,-500.0,0.00027397,2]
[341453708,1730899844411,-4890.72,0.00027397,2]
[341453709,1730899844420,-500.0,0.00027397,2]
[341453710,1730899844431,-500.0,0.00027397,2]
[341453711,1730899844440,-500.0,0.00027397,2]
[341453712,1730899844450,-500.0,0.00027397,2]
[341453713,1730899844460,-500.0,0.00027397,2]
[341453714,1730899844470,-500.0,0.00027397,2]
[341453715,1730899844479,-500.0,0.00027397,2]
[341453716,1730899844489,-500.0,0.00027397,2]
[341453717,1730899844499,-500.0,0.00027397,2]
[341453718,1730899844508,-349.78950467,0.00027397,2]
[341453719,1730899844521,-394.70049533,0.00027397,2]
[341453720,1730899844530,-500.0,0.00027397,2]
[341453721,1730899844540,-500.0,0.00027397,2]
[341453722,1730899844549,-500.0,0.00027397,2]
[341453723,1730899844558,-500.0,0.00027397,2]
[341453724,1730899844568,-500.0,0.00027397,2]
[341453725,1730899844577,-314.82318418,0.00027397,2]
[341453726,1730899844587,-500.0,0.00027397,2]
[341453727,1730899844596,-4227.72,0.00027397,2]
[341453728,1730899844605,-500.0,0.00027397,2]
[341453729,1730899844615,-500.0,0.00027397,2]
[341453730,1730899844630,-500.0,0.00027397,2]
[341453731,1730899844643,-500.0,0.00027397,2]
[341453732,1730899844652,-500.0,0.00027397,2]
[341453733,1730899844661,-500.0,0.00027397,2]
[341453734,1730899844671,-500.0,0.00027397,2]
[341453735,1730899844681,-500.0,0.00027397,2]
[341453736,1730899844690,-500.0,0.00027397,2]
[341453737,1730899844700,-500.0,0.00027397,2]
[341453738,1730899844710,-519.71244526,0.00027397,2]
[341453739,1730899844719,-500.0,0.00027397,2]
[341453740,1730899844729,-432.25517574,0.00027397,2]
[341453741,1730899844739,-514.89033968,0.00027397,2]
[341453742,1730899844749,-370.40020888,0.00027397,2]
[341453746,1730899846768,-163.0,0.00027,2]
[341453747,1730899846777,-129.59979112,0.00027397,2]
[341453748,1730899846786,-569.23946109,0.00027397,2]
[341453749,1730899846795,-500.0,0.00027397,2]
[341453750,1730899846804,-500.0,0.00027397,2]
[341453751,1730899846814,-544.55855869,0.00027397,2]
[341453752,1730899846823,-500.0,0.00027397,2]
[341453753,1730899846832,-218.44257887,0.00027397,2]
[341453754,1730899846847,-501.92742113,0.00027397,2]
[341453755,1730899846856,-500.0,0.00027397,2]
[341453756,1730899846865,-500.0,0.00027397,2]
[341453757,1730899846875,-500.0,0.00027397,2]
[341453758,1730899846885,-500.0,0.00027397,2]
[341453759,1730899846894,-500.0,0.00027397,2]
[341453760,1730899846903,-505.05507572,0.00027397,2]
[341453761,1730899846912,-326.62364608,0.00027397,2]
[341453762,1730899846923,-173.37635392,0.00027397,2]
[341453763,1730899846933,-500.0,0.00027397,2]
[341453764,1730899846942,-500.0,0.00027397,2]
[341453765,1730899846952,-500.0,0.00027397,2]
[341453766,1730899846961,-500.0,0.00027397,2]
[341453767,1730899846970,-501.06394467,0.00027397,2]
[341453768,1730899846980,-500.0,0.00027397,2]
[341453769,1730899846989,-506.33631443,0.00027397,2]
[341453770,1730899846999,-530.26643491,0.00027397,2]
[341453771,1730899847009,-596.37957882,0.00027397,2]
[341453772,1730899847018,-152.22,0.00027397,2]
[341453773,1730899847027,-550.01430554,0.00027397,2]
[341453774,1730899847036,-500.0,0.00027397,2]
[341453775,1730899847046,-500.0,0.00027397,2]
[341453776,1730899847055,-500.0,0.00027397,2]
[341453777,1730899847064,-500.0,0.00027397,2]
[341453778,1730899847073,-500.0,0.00027397,2]
[341453779,1730899847082,-500.0,0.00027397,2]
[341453780,1730899847092,-500.0,0.00027397,2]
[341453781,1730899847102,-500.0,0.00027397,2]
[341453782,1730899847112,-500.0,0.00027397,2]
[341453783,1730899847121,-500.0,0.00027397,2]
[341453784,1730899847131,-500.0,0.00027397,2]
[341453785,1730899847141,-506.58745277,0.00027397,2]
[341453786,1730899847151,-500.0,0.00027397,2]
[341453787,1730899847160,-500.0,0.00027397,2]
[341453788,1730899847170,-500.0,0.00027397,2]
[341453789,1730899847181,-500.0,0.00027397,2]
[341453790,1730899847190,-500.0,0.00027397,2]
[341453791,1730899847199,-500.0,0.00027397,2]
[341453792,1730899847209,-566.46822756,0.00027397,2]
[341453793,1730899847219,-500.0,0.00027397,2]
[341453794,1730899847228,-500.0,0.00027397,2]
[341453795,1730899847237,-637.77403834,0.00027397,2]
[341453796,1730899847247,-500.0,0.00027397,2]
[341453797,1730899847256,-500.0,0.00027397,2]
[341453798,1730899847265,-500.0,0.00027397,2]
[341453799,1730899847275,-500.0,0.00027397,2]
[341453800,1730899847284,-500.0,0.00027397,2]
[341453801,1730899847293,-500.0,0.00027397,2]
[341453802,1730899847303,-500.0,0.00027397,2]
[341453803,1730899847312,-500.0,0.00027397,2]
[341453804,1730899847321,-516.74791874,0.00027397,2]
[341453805,1730899847331,-500.0,0.00027397,2]
[341453806,1730899847340,-500.0,0.00027397,2]
[341453807,1730899847350,-151.11217723,0.00027397,2]
[341453808,1730899847359,-312.57430004,0.00027397,2]
[341453809,1730899847370,-187.42569996,0.00027397,2]
[341453810,1730899847381,-842.38,0.00027397,2]
[341453811,1730899847390,-500.0,0.00027397,2]
[341453812,1730899847400,-500.0,0.00027397,2]
[341453813,1730899847409,-500.0,0.00027397,2]
[341453814,1730899847418,-500.0,0.00027397,2]
[341453815,1730899847427,-500.0,0.00027397,2]
[341453816,1730899847437,-500.0,0.00027397,2]
[341453817,1730899847446,-500.0,0.00027397,2]
[341453818,1730899847455,-500.0,0.00027397,2]
[341453819,1730899847465,-131.19430004,0.00027397,2]
[341453820,1730899895544,160.712138,0.00013973,2]
[341453821,1730899904749,1557.0,0.0002,2]
[341453822,1730899960296,1169.27083333,0.0002082,2]
[341453850,1730900387663,159.6245312,0.00013973,2]
[341453856,1730900572092,1169.27083333,0.0002082,2]
[341453868,1730900877008,160.712138,0.00013973,2]
[341453931,1730901031982,-298.53164,0.00023151,2]
[341453932,1730901031994,-741.96070511,0.00023151,2]
[341453933,1730901032007,-128.77848822,0.00023151,2]
[341453935,1730901032017,-300.0,0.00024287,2]
[341453936,1730901032026,-9383.8133704,0.00024288,2]
[341453937,1730901032036,-17158.6938776,0.0002453,2]
[341453938,1730901032046,-193.3520419,0.00024622,2]
[341453939,1730901032058,-730.944081,0.00024704,2]
[341453940,1730901032067,-302.8183302,0.00025,2]
[341453941,1730901032077,-302.8183302,0.0002525,2]
[341453942,1730901032086,-730.944081,0.00025389,2]
[341453943,1730901032095,-302.8183302,0.000255,2]
[341453944,1730901032105,-166.475151,0.00025575,2]
[341453945,1730901032115,-99.70337668,0.0002575,2]
[341453955,1730901038256,-203.11495352,0.0002575,2]
[341453957,1730901038265,-166.81504648,0.00026,2]
[341453958,1730901038327,-136.00328372,0.00026,2]
[341453959,1730901038338,-463.98470431,0.00026074,2]
[341453968,1730901040041,-266.95937669,0.00026074,2]